{"text_format":"3","workbook":"xlsx","n_sheets":4,"sheets":["Pradžia","PROJEKTO PARAMETRAI","PROJEKTO INFORMACIJA","PROJEKTO SUMOS"],"not_rendered":{"charts":2,"defined_names":3,"pivot_tables":1},"read":"whole","date_system":"1900"}

{"sheet":"Pradžia","index":0,"n_rows":8,"n_cols":2,"rows_kept":8}
[null,"APIE ŠĮ ŠABLONĄ"]
[]
[null,"Naudokite šią darbaknygę, kad galėtumėte sekti projekto parametrai, projekto informacija ir projekto sumos Advokatų kontorų projekto planavimas įmonėms. įmonėms."]
[null,"Įveskite įmonės pavadinimas darbalapyje Projekto parametrai ir jis bus automatiškai atnaujintas kituose darbalapiuose."]
[null,"Įveskite informaciją apie projekto parametrai darbalapį, kad atnaujintumėte stulpelių diagramas ir projekto informacija darbalapį. Projekto sumos darbalapyje automatiškai atnaujinama projekto „PivotTable“."]
[null,"Pastaba.  "]
[null,"Papildomos instrukcijos pateikiamos kiekvieno darbalapio A stulpelyje. Šis tekstas buvo specialiai paslėptas. Norėdami pašalinti tekstą, pasirinkite A stulpelį, tada pasirinkite Naikinti. Norėdami nebeslėpti teksto, pasirinkite A stulpelį, tada pakeiskite šrifto spalvą."]
[null,"Norėdami sužinoti daugiau apie darbalapio lenteles, lentelėje paspauskite SHIFT, tada – F10, pasirinkite parinktį LENTELĖ, tada pasirinkite ALTERNATYVUS TEKSTAS. Jei naudojate „PivotTable“ bendrųjų projekto taškų darbalapyje, laikydami nuspaudę klavišą SHIFT ir F10 lentelėje, pasirinkite PIVOTTABLE PARINKTYS, tada pasirinkite skirtuką ALTERNATYVUSIS TEKSTAS."]

{"sheet":"PROJEKTO PARAMETRAI","index":1,"n_rows":19,"n_cols":9,"rows_kept":19}
["Kurkite projekto parametrai šiame darbalapyje. Langelyje dešinėje įveskite įmonės pavadinimas. Naudingos instrukcijos pateiktos šio stulpelio langeliuose.","Įmonės pavadinimas"]
["Šio darbalapio pavadinimas yra langelyje dešinėje.","Advokatų kontorų projekto planavimas"]
["Konfidencialumo pranešimas langelyje dešinėje.",{"$f":"B1&\" (konfidencialu)\"","v":"Įmonės pavadinimas (konfidencialu)"}]
["Patarimas pateikiamas langelyje dešinėje.","Paryškintuose langeliuose esančios reikšmės apskaičiuojamos už jus. Jums nereikia nieko į juos įvesti."]
["Įveskite informaciją lentelėje Parametrai pradėdami nuo langelio dešinėje. Kitas nurodymas yra A12 langelyje.","PROJEKTO TIPAS","BENDRASIS PARTNERIS","VERSLO TEISININKAS","GYNYBOS ŠALIS TEISINIAME PROCESE","INTELEKTINĖS NUOSAVYBĖS TEISININKAS","BANKROTO TEISININKAS","ADMINISTRACIJOS DARBUOTOJAI","SUMA"]
[null,"Verslo įtraukimas",{"v":0.1,"d":"10%"},{"v":0.4,"d":"40%"},{"v":0,"d":"0%"},{"v":0,"d":"0%"},{"v":0,"d":"0%"},{"v":0.5,"d":"50%"},{"$f":"SUM(Parametrai[[#This Row],[BENDRASIS PARTNERIS]:[ADMINISTRACIJOS DARBUOTOJAI]])","v":{"v":1,"d":"100%"}}]
[null,"Verslo įsigijimas",{"v":0.1,"d":"10%"},{"v":0.4,"d":"40%"},{"v":0,"d":"0%"},{"v":0.1,"d":"10%"},{"v":0,"d":"0%"},{"v":0.4,"d":"40%"},{"$f":"SUM(Parametrai[[#This Row],[BENDRASIS PARTNERIS]:[ADMINISTRACIJOS DARBUOTOJAI]])","v":{"v":1,"d":"100%"}}]
[null,"Produkto atsakomybės gynyba",{"v":0.2,"d":"20%"},{"v":0,"d":"0%"},{"v":0.5,"d":"50%"},{"v":0,"d":"0%"},{"v":0,"d":"0%"},{"v":0.3,"d":"30%"},{"$f":"SUM(Parametrai[[#This Row],[BENDRASIS PARTNERIS]:[ADMINISTRACIJOS DARBUOTOJAI]])","v":{"v":1,"d":"100%"}}]
[null,"Patentų pateikimas",{"v":0.1,"d":"10%"},{"v":0,"d":"0%"},{"v":0,"d":"0%"},{"v":0.6,"d":"60%"},{"v":0,"d":"0%"},{"v":0.3,"d":"30%"},{"$f":"SUM(Parametrai[[#This Row],[BENDRASIS PARTNERIS]:[ADMINISTRACIJOS DARBUOTOJAI]])","v":{"v":1,"d":"100%"}}]
[null,"Darbuotojo byla",{"v":0.2,"d":"20%"},{"v":0.1,"d":"10%"},{"v":0.4,"d":"40%"},{"v":0,"d":"0%"},{"v":0,"d":"0%"},{"v":0.3,"d":"30%"},{"$f":"SUM(Parametrai[[#This Row],[BENDRASIS PARTNERIS]:[ADMINISTRACIJOS DARBUOTOJAI]])","v":{"v":1,"d":"100%"}}]
[null,"Bankrotas",{"v":0.1,"d":"10%"},{"v":0.2,"d":"20%"},{"v":0,"d":"0%"},{"v":0,"d":"0%"},{"v":0.4,"d":"40%"},{"v":0.3,"d":"30%"},{"$f":"SUM(Parametrai[[#This Row],[BENDRASIS PARTNERIS]:[ADMINISTRACIJOS DARBUOTOJAI]])","v":{"v":1,"d":"100%"}}]
["Įveskite mišrius mokesčiai langeliuose dešinėje nuo C12 iki H12. Kitas nurodymas yra A14 langelyje.","Mišrūs mokesčiai",{"v":350,"d":"350 EUR"},{"v":250,"d":"250 EUR"},{"v":300,"d":"300 EUR"},{"v":275,"d":"275 EUR"},{"v":225,"d":"225 EUR"},{"v":125,"d":"125 EUR"}]
[]
["Stulpelinė diagrama rodanti palyginimą tarp suplanuotos ir faktinės išlaidos langelyje dešinėje, ir stulpelinė diagrama rodanti palyginimą tarp suplanuotos ir faktinės valandos F14 langelyje."]
[null,null,"BENDRASIS PARTNERIS","ĮMONĖ","GYNYBOS ŠALIS TEISINIAME PROCESE","INTELEKTINĖ NUOSAVYBĖ.","BANKROTAS","ADMINISTRACIJOS DARBUOTOJAI"]
[null,"SUPLANUOTOS IŠLAIDOS",{"$f":"SUBTOTAL(109,Informacija[BENDRASIS PARTNERIS])","v":{"v":78750,"d":"78,750.00 EUR"}},{"$f":"SUBTOTAL(109,Informacija[VERSLO TEISININKAS])","v":{"v":66250,"d":"66,250.00 EUR"}},{"$f":"SUBTOTAL(109,Informacija[GYNYBOS ŠALIS TEISINIAME PROCESE])","v":{"v":105000,"d":"105,000.00 EUR"}},{"$f":"SUBTOTAL(109,Informacija[INTELEKTINĖS NUOSAVYBĖS TEISININKAS])","v":{"v":35750,"d":"35,750.00 EUR"}},{"$f":"SUBTOTAL(109,Informacija[BANKROTO TEISININKAS])","v":{"v":0,"d":"0.00 EUR"}},{"$f":"SUBTOTAL(109,Informacija[ADMINISTRACIJOS DARBUOTOJAI])","v":{"v":66250,"d":"66,250.00 EUR"}}]
[null,"FAKTINĖS IŠLAIDOS",{"$f":"SUBTOTAL(109,Informacija[2 BENDRASIS PARTNERIS])","v":{"v":79275,"d":"79,275.00 EUR"}},{"$f":"SUBTOTAL(109,Informacija[2 VERSLO TEISININKAS])","v":{"v":67375,"d":"67,375.00 EUR"}},{"$f":"SUBTOTAL(109,Informacija[2 GYNYBOS ŠALIS TEISINIAME PROCESE])","v":{"v":105600,"d":"105,600.00 EUR"}},{"$f":"SUBTOTAL(109,Informacija[2 INTELEKTINĖS NUOSAVYBĖS TEISININKAS])","v":{"v":34650,"d":"34,650.00 EUR"}},{"$f":"SUBTOTAL(109,Informacija[2 BANKROTO TEISININKAS])","v":{"v":0,"d":"0.00 EUR"}},{"$f":"SUBTOTAL(109,Informacija[2 ADMINISTRACIJOS DARBUOTOJAS])","v":{"v":67000,"d":"67,000.00 EUR"}}]
[null,"SUPLANUOTOS VALANDOS",{"$f":"C16/$C$12","v":{"v":225,"d":"225.00"}},{"$f":"D16/$C$12","v":{"v":189.28571428571428,"d":"189.29"}},{"v":300,"d":"300.00"},{"v":102.14285714285714,"d":"102.14"},{"v":0,"d":"0.00"},{"v":189.28571428571428,"d":"189.29"}]
[null,"FAKTINĖS VALANDOS",{"$f":"C17/$C$12","v":{"v":226.5,"d":"226.50"}},{"$f":"D17/$C$12","v":{"v":192.5,"d":"192.50"}},{"$f":"E17/$C$12","v":{"v":301.7142857142857,"d":"301.71"}},{"$f":"F17/$C$12","v":{"v":99,"d":"99.00"}},{"$f":"G17/$C$12","v":{"v":0,"d":"0.00"}},{"$f":"H17/$C$12","v":{"v":191.42857142857142,"d":"191.43"}}]

{"sheet":"PROJEKTO INFORMACIJA","index":2,"n_rows":10,"n_cols":25,"rows_kept":10,"merged":[[1,24,8,28]]}
["Kurkite projekto informacija šiame darbalapyje. Įmonės pavadinimas automatiškai atnaujinamas langelyje dešinėje. Naudingos instrukcijos pateiktos šio stulpelio langeliuose. Paspauskite rodyklę žemyn, kad pradėtumėte.",{"$f":"'PROJEKTO PARAMETRAI'!B1","v":"Įmonės pavadinimas"}]
["Darbalapio pavadinimas yra langelyje dešinėje, o informaciniai patarimai pateikti langelyje Y2.",{"$f":"'PROJEKTO PARAMETRAI'!B2","v":"Advokatų kontorų projekto planavimas"},{"$nulls":22},"INFORMACIJA:\nNorėdami įtraukti eilutę, pasirinkite apatiniame dešiniajame kampe esantį langelį (ne sumos eilutę) ir paspauskite Tab arba paspauskite SHIFT, tada F10 ten, kur norite įterpti eilutę, tada spustelėkite Įterpti | Lentelės eilutės Viršuje/apačioje.\nĮsitikinkite, kad panaikintos visos nenaudojamas eilutės, nes PROJEKTO SUMOS PivotTable naudos visus lentelės langelius, nes kitu atveju bus pateikti klaidingi rezultatai."]
["Konfidencialumo pranešimas langelyje dešinėje.",{"$f":"'PROJEKTO PARAMETRAI'!B3","v":"Įmonės pavadinimas (konfidencialu)"}]
["Įveskite informaciją lentelėje Informacija nuo langelio dešinėje. Projekto tipas informacija lentelėje dešinėje yra automatiškai atnaujinami pagal lentelė Parametrai, esančią projekto parametrai darbalapyje.","PROJEKTO PAVADINIMAS","PROJEKTO TIPAS","NUMATOMA PRADŽIA","NUMATOMA PABAIGA","FAKTINĖ PRADŽIA","FAKTINĖ PABAIGA","NUMATYTOS DARBO VALANDOS","FAKTINĖS DARBO VALANDOS","NUMATOMA TRUKMĖ","FAKTINĖ TRUKMĖ","BENDRASIS PARTNERIS","VERSLO TEISININKAS","GYNYBOS ŠALIS TEISINIAME PROCESE","INTELEKTINĖS NUOSAVYBĖS TEISININKAS","BANKROTO TEISININKAS","ADMINISTRACIJOS DARBUOTOJAI","2 BENDRASIS PARTNERIS","2 VERSLO TEISININKAS","2 GYNYBOS ŠALIS TEISINIAME PROCESE","2 INTELEKTINĖS NUOSAVYBĖS TEISININKAS","2 BANKROTO TEISININKAS","2 ADMINISTRACIJOS DARBUOTOJAS"]
[null,"1 projektas","Verslo įtraukimas",{"$f":"TODAY()","v":"2019-02-20"},{"$f":"TODAY()+60","v":"2019-04-21"},{"$f":"TODAY()+10","v":"2019-03-02"},{"$f":"TODAY()+65","v":"2019-04-26"},200,220,{"$f":"DAYS360(Informacija[[#This Row],[NUMATOMA PRADŽIA]],Informacija[[#This Row],[NUMATOMA PABAIGA]],FALSE)","v":61},{"$f":"DAYS360(Informacija[[#This Row],[FAKTINĖ PRADŽIA]],Informacija[[#This Row],[FAKTINĖ PABAIGA]],FALSE)","v":54},{"$f":"INDEX(Parametrai[],MATCH(Informacija[[#This Row],[PROJEKTO TIPAS]],Parametrai[PROJEKTO TIPAS],0),MATCH(Informacija[[#Headers],[BENDRASIS PARTNERIS]],Parametrai[#Headers],0))*INDEX('PROJEKTO PARAMETRAI'!$B$12:$H$12,1,MATCH(Informacija[[#Headers],[BENDRASIS PARTNERIS]],Parametrai[#Headers],0))*Informacija[[#This Row],[NUMATYTOS DARBO VALANDOS]]","v":{"v":7000,"d":"7,000 EUR"}},{"$f":"INDEX(Parametrai[],MATCH(Informacija[[#This Row],[PROJEKTO TIPAS]],Parametrai[PROJEKTO TIPAS],0),MATCH(Informacija[[#Headers],[VERSLO TEISININKAS]],Parametrai[#Headers],0))*INDEX('PROJEKTO PARAMETRAI'!$B$12:$H$12,1,MATCH(Informacija[[#Headers],[VERSLO TEISININKAS]],Parametrai[#Headers],0))*Informacija[[#This Row],[NUMATYTOS DARBO VALANDOS]]","v":{"v":20000,"d":"20,000 EUR"}},{"$f":"INDEX(Parametrai[],MATCH(Informacija[[#This Row],[PROJEKTO TIPAS]],Parametrai[PROJEKTO TIPAS],0),MATCH(Informacija[[#Headers],[GYNYBOS ŠALIS TEISINIAME PROCESE]],Parametrai[#Headers],0))*INDEX('PROJEKTO PARAMETRAI'!$B$12:$H$12,1,MATCH(Informacija[[#Headers],[GYNYBOS ŠALIS TEISINIAME PROCESE]],Parametrai[#Headers],0))*Informacija[[#This Row],[NUMATYTOS DARBO VALANDOS]]","v":{"v":0,"d":"0 EUR"}},{"$f":"INDEX(Parametrai[],MATCH(Informacija[[#This Row],[PROJEKTO TIPAS]],Parametrai[PROJEKTO TIPAS],0),MATCH(Informacija[[#Headers],[INTELEKTINĖS NUOSAVYBĖS TEISININKAS]],Parametrai[#Headers],0))*INDEX('PROJEKTO PARAMETRAI'!$B$12:$H$12,1,MATCH(Informacija[[#Headers],[INTELEKTINĖS NUOSAVYBĖS TEISININKAS]],Parametrai[#Headers],0))*Informacija[[#This Row],[NUMATYTOS DARBO VALANDOS]]","v":{"v":0,"d":"0 EUR"}},{"$f":"INDEX(Parametrai[],MATCH(Informacija[[#This Row],[PROJEKTO TIPAS]],Parametrai[PROJEKTO TIPAS],0),MATCH(Informacija[[#Headers],[BANKROTO TEISININKAS]],Parametrai[#Headers],0))*INDEX('PROJEKTO PARAMETRAI'!$B$12:$H$12,1,MATCH(Informacija[[#Headers],[BANKROTO TEISININKAS]],Parametrai[#Headers],0))*Informacija[[#This Row],[NUMATYTOS DARBO VALANDOS]]","v":{"v":0,"d":"0 EUR"}},{"$f":"INDEX(Parametrai[],MATCH(Informacija[[#This Row],[PROJEKTO TIPAS]],Parametrai[PROJEKTO TIPAS],0),MATCH(Informacija[[#Headers],[ADMINISTRACIJOS DARBUOTOJAI]],Parametrai[#Headers],0))*INDEX('PROJEKTO PARAMETRAI'!$B$12:$H$12,1,MATCH(Informacija[[#Headers],[ADMINISTRACIJOS DARBUOTOJAI]],Parametrai[#Headers],0))*Informacija[[#This Row],[NUMATYTOS DARBO VALANDOS]]","v":{"v":12500,"d":"12,500 EUR"}},{"$f":"INDEX(Parametrai[],MATCH(Informacija[[#This Row],[PROJEKTO TIPAS]],Parametrai[PROJEKTO TIPAS],0),MATCH(Informacija[[#Headers],[BENDRASIS PARTNERIS]],Parametrai[#Headers],0))*INDEX('PROJEKTO PARAMETRAI'!$B$12:$H$12,1,MATCH(Informacija[[#Headers],[BENDRASIS PARTNERIS]],Parametrai[#Headers],0))*Informacija[[#This Row],[FAKTINĖS DARBO VALANDOS]]","v":{"v":7700,"d":"7,700 EUR"}},{"$f":"INDEX(Parametrai[],MATCH(Informacija[[#This Row],[PROJEKTO TIPAS]],Parametrai[PROJEKTO TIPAS],0),MATCH(Informacija[[#Headers],[VERSLO TEISININKAS]],Parametrai[#Headers],0))*INDEX('PROJEKTO PARAMETRAI'!$B$12:$H$12,1,MATCH(Informacija[[#Headers],[VERSLO TEISININKAS]],Parametrai[#Headers],0))*Informacija[[#This Row],[FAKTINĖS DARBO VALANDOS]]","v":{"v":22000,"d":"22,000 EUR"}},{"$f":"INDEX(Parametrai[],MATCH(Informacija[[#This Row],[PROJEKTO TIPAS]],Parametrai[PROJEKTO TIPAS],0),MATCH(Informacija[[#Headers],[GYNYBOS ŠALIS TEISINIAME PROCESE]],Parametrai[#Headers],0))*INDEX('PROJEKTO PARAMETRAI'!$B$12:$H$12,1,MATCH(Informacija[[#Headers],[GYNYBOS ŠALIS TEISINIAME PROCESE]],Parametrai[#Headers],0))*Informacija[[#This Row],[FAKTINĖS DARBO VALANDOS]]","v":{"v":0,"d":"0 EUR"}},{"$f":"INDEX(Parametrai[],MATCH(Informacija[[#This Row],[PROJEKTO TIPAS]],Parametrai[PROJEKTO TIPAS],0),MATCH(Informacija[[#Headers],[INTELEKTINĖS NUOSAVYBĖS TEISININKAS]],Parametrai[#Headers],0))*INDEX('PROJEKTO PARAMETRAI'!$B$12:$H$12,1,MATCH(Informacija[[#Headers],[INTELEKTINĖS NUOSAVYBĖS TEISININKAS]],Parametrai[#Headers],0))*Informacija[[#This Row],[FAKTINĖS DARBO VALANDOS]]","v":{"v":0,"d":"0 EUR"}},{"$f":"INDEX(Parametrai[],MATCH(Informacija[[#This Row],[PROJEKTO TIPAS]],Parametrai[PROJEKTO TIPAS],0),MATCH(Informacija[[#Headers],[BANKROTO TEISININKAS]],Parametrai[#Headers],0))*INDEX('PROJEKTO PARAMETRAI'!$B$12:$H$12,1,MATCH(Informacija[[#Headers],[BANKROTO TEISININKAS]],Parametrai[#Headers],0))*Informacija[[#This Row],[FAKTINĖS DARBO VALANDOS]]","v":{"v":0,"d":"0 EUR"}},{"$f":"INDEX(Parametrai[],MATCH(Informacija[[#This Row],[PROJEKTO TIPAS]],Parametrai[PROJEKTO TIPAS],0),MATCH(Informacija[[#Headers],[ADMINISTRACIJOS DARBUOTOJAI]],Parametrai[#Headers],0))*INDEX('PROJEKTO PARAMETRAI'!$B$12:$H$12,1,MATCH(Informacija[[#Headers],[ADMINISTRACIJOS DARBUOTOJAI]],Parametrai[#Headers],0))*Informacija[[#This Row],[FAKTINĖS DARBO VALANDOS]]","v":{"v":13750,"d":"13,750 EUR"}}]
[null,"2 projektas","Verslo įsigijimas",{"$f":"TODAY()+30","v":"2019-03-22"},{"$f":"TODAY()+100","v":"2019-05-31"},{"$f":"TODAY()+40","v":"2019-04-01"},{"$f":"TODAY()+110","v":"2019-06-10"},400,390,{"$f":"DAYS360(Informacija[[#This Row],[NUMATOMA PRADŽIA]],Informacija[[#This Row],[NUMATOMA PABAIGA]],FALSE)","v":69},{"$f":"DAYS360(Informacija[[#This Row],[FAKTINĖ PRADŽIA]],Informacija[[#This Row],[FAKTINĖ PABAIGA]],FALSE)","v":69},{"$f":"INDEX(Parametrai[],MATCH(Informacija[[#This Row],[PROJEKTO TIPAS]],Parametrai[PROJEKTO TIPAS],0),MATCH(Informacija[[#Headers],[BENDRASIS PARTNERIS]],Parametrai[#Headers],0))*INDEX('PROJEKTO PARAMETRAI'!$B$12:$H$12,1,MATCH(Informacija[[#Headers],[BENDRASIS PARTNERIS]],Parametrai[#Headers],0))*Informacija[[#This Row],[NUMATYTOS DARBO VALANDOS]]","v":{"v":14000,"d":"14,000 EUR"}},{"$f":"INDEX(Parametrai[],MATCH(Informacija[[#This Row],[PROJEKTO TIPAS]],Parametrai[PROJEKTO TIPAS],0),MATCH(Informacija[[#Headers],[VERSLO TEISININKAS]],Parametrai[#Headers],0))*INDEX('PROJEKTO PARAMETRAI'!$B$12:$H$12,1,MATCH(Informacija[[#Headers],[VERSLO TEISININKAS]],Parametrai[#Headers],0))*Informacija[[#This Row],[NUMATYTOS DARBO VALANDOS]]","v":{"v":40000,"d":"40,000 EUR"}},{"$f":"INDEX(Parametrai[],MATCH(Informacija[[#This Row],[PROJEKTO TIPAS]],Parametrai[PROJEKTO TIPAS],0),MATCH(Informacija[[#Headers],[GYNYBOS ŠALIS TEISINIAME PROCESE]],Parametrai[#Headers],0))*INDEX('PROJEKTO PARAMETRAI'!$B$12:$H$12,1,MATCH(Informacija[[#Headers],[GYNYBOS ŠALIS TEISINIAME PROCESE]],Parametrai[#Headers],0))*Informacija[[#This Row],[NUMATYTOS DARBO VALANDOS]]","v":{"v":0,"d":"0 EUR"}},{"$f":"INDEX(Parametrai[],MATCH(Informacija[[#This Row],[PROJEKTO TIPAS]],Parametrai[PROJEKTO TIPAS],0),MATCH(Informacija[[#Headers],[INTELEKTINĖS NUOSAVYBĖS TEISININKAS]],Parametrai[#Headers],0))*INDEX('PROJEKTO PARAMETRAI'!$B$12:$H$12,1,MATCH(Informacija[[#Headers],[INTELEKTINĖS NUOSAVYBĖS TEISININKAS]],Parametrai[#Headers],0))*Informacija[[#This Row],[NUMATYTOS DARBO VALANDOS]]","v":{"v":11000,"d":"11,000 EUR"}},{"$f":"INDEX(Parametrai[],MATCH(Informacija[[#This Row],[PROJEKTO TIPAS]],Parametrai[PROJEKTO TIPAS],0),MATCH(Informacija[[#Headers],[BANKROTO TEISININKAS]],Parametrai[#Headers],0))*INDEX('PROJEKTO PARAMETRAI'!$B$12:$H$12,1,MATCH(Informacija[[#Headers],[BANKROTO TEISININKAS]],Parametrai[#Headers],0))*Informacija[[#This Row],[NUMATYTOS DARBO VALANDOS]]","v":{"v":0,"d":"0 EUR"}},{"$f":"INDEX(Parametrai[],MATCH(Informacija[[#This Row],[PROJEKTO TIPAS]],Parametrai[PROJEKTO TIPAS],0),MATCH(Informacija[[#Headers],[ADMINISTRACIJOS DARBUOTOJAI]],Parametrai[#Headers],0))*INDEX('PROJEKTO PARAMETRAI'!$B$12:$H$12,1,MATCH(Informacija[[#Headers],[ADMINISTRACIJOS DARBUOTOJAI]],Parametrai[#Headers],0))*Informacija[[#This Row],[NUMATYTOS DARBO VALANDOS]]","v":{"v":20000,"d":"20,000 EUR"}},{"$f":"INDEX(Parametrai[],MATCH(Informacija[[#This Row],[PROJEKTO TIPAS]],Parametrai[PROJEKTO TIPAS],0),MATCH(Informacija[[#Headers],[BENDRASIS PARTNERIS]],Parametrai[#Headers],0))*INDEX('PROJEKTO PARAMETRAI'!$B$12:$H$12,1,MATCH(Informacija[[#Headers],[BENDRASIS PARTNERIS]],Parametrai[#Headers],0))*Informacija[[#This Row],[FAKTINĖS DARBO VALANDOS]]","v":{"v":13650,"d":"13,650 EUR"}},{"$f":"INDEX(Parametrai[],MATCH(Informacija[[#This Row],[PROJEKTO TIPAS]],Parametrai[PROJEKTO TIPAS],0),MATCH(Informacija[[#Headers],[VERSLO TEISININKAS]],Parametrai[#Headers],0))*INDEX('PROJEKTO PARAMETRAI'!$B$12:$H$12,1,MATCH(Informacija[[#Headers],[VERSLO TEISININKAS]],Parametrai[#Headers],0))*Informacija[[#This Row],[FAKTINĖS DARBO VALANDOS]]","v":{"v":39000,"d":"39,000 EUR"}},{"$f":"INDEX(Parametrai[],MATCH(Informacija[[#This Row],[PROJEKTO TIPAS]],Parametrai[PROJEKTO TIPAS],0),MATCH(Informacija[[#Headers],[GYNYBOS ŠALIS TEISINIAME PROCESE]],Parametrai[#Headers],0))*INDEX('PROJEKTO PARAMETRAI'!$B$12:$H$12,1,MATCH(Informacija[[#Headers],[GYNYBOS ŠALIS TEISINIAME PROCESE]],Parametrai[#Headers],0))*Informacija[[#This Row],[FAKTINĖS DARBO VALANDOS]]","v":{"v":0,"d":"0 EUR"}},{"$f":"INDEX(Parametrai[],MATCH(Informacija[[#This Row],[PROJEKTO TIPAS]],Parametrai[PROJEKTO TIPAS],0),MATCH(Informacija[[#Headers],[INTELEKTINĖS NUOSAVYBĖS TEISININKAS]],Parametrai[#Headers],0))*INDEX('PROJEKTO PARAMETRAI'!$B$12:$H$12,1,MATCH(Informacija[[#Headers],[INTELEKTINĖS NUOSAVYBĖS TEISININKAS]],Parametrai[#Headers],0))*Informacija[[#This Row],[FAKTINĖS DARBO VALANDOS]]","v":{"v":10725,"d":"10,725 EUR"}},{"$f":"INDEX(Parametrai[],MATCH(Informacija[[#This Row],[PROJEKTO TIPAS]],Parametrai[PROJEKTO TIPAS],0),MATCH(Informacija[[#Headers],[BANKROTO TEISININKAS]],Parametrai[#Headers],0))*INDEX('PROJEKTO PARAMETRAI'!$B$12:$H$12,1,MATCH(Informacija[[#Headers],[BANKROTO TEISININKAS]],Parametrai[#Headers],0))*Informacija[[#This Row],[FAKTINĖS DARBO VALANDOS]]","v":{"v":0,"d":"0 EUR"}},{"$f":"INDEX(Parametrai[],MATCH(Informacija[[#This Row],[PROJEKTO TIPAS]],Parametrai[PROJEKTO TIPAS],0),MATCH(Informacija[[#Headers],[ADMINISTRACIJOS DARBUOTOJAI]],Parametrai[#Headers],0))*INDEX('PROJEKTO PARAMETRAI'!$B$12:$H$12,1,MATCH(Informacija[[#Headers],[ADMINISTRACIJOS DARBUOTOJAI]],Parametrai[#Headers],0))*Informacija[[#This Row],[FAKTINĖS DARBO VALANDOS]]","v":{"v":19500,"d":"19,500 EUR"}}]
[null,"3 projektas","Produkto atsakomybės gynyba",{"$f":"TODAY()+150","v":"2019-07-20"},{"$f":"TODAY()+150","v":"2019-07-20"},{"$f":"TODAY()+150","v":"2019-07-20"},{"$f":"TODAY()+170","v":"2019-08-09"},500,500,{"$f":"DAYS360(Informacija[[#This Row],[NUMATOMA PRADŽIA]],Informacija[[#This Row],[NUMATOMA PABAIGA]],FALSE)","v":0},{"$f":"DAYS360(Informacija[[#This Row],[FAKTINĖ PRADŽIA]],Informacija[[#This Row],[FAKTINĖ PABAIGA]],FALSE)","v":19},{"$f":"INDEX(Parametrai[],MATCH(Informacija[[#This Row],[PROJEKTO TIPAS]],Parametrai[PROJEKTO TIPAS],0),MATCH(Informacija[[#Headers],[BENDRASIS PARTNERIS]],Parametrai[#Headers],0))*INDEX('PROJEKTO PARAMETRAI'!$B$12:$H$12,1,MATCH(Informacija[[#Headers],[BENDRASIS PARTNERIS]],Parametrai[#Headers],0))*Informacija[[#This Row],[NUMATYTOS DARBO VALANDOS]]","v":{"v":35000,"d":"35,000 EUR"}},{"$f":"INDEX(Parametrai[],MATCH(Informacija[[#This Row],[PROJEKTO TIPAS]],Parametrai[PROJEKTO TIPAS],0),MATCH(Informacija[[#Headers],[VERSLO TEISININKAS]],Parametrai[#Headers],0))*INDEX('PROJEKTO PARAMETRAI'!$B$12:$H$12,1,MATCH(Informacija[[#Headers],[VERSLO TEISININKAS]],Parametrai[#Headers],0))*Informacija[[#This Row],[NUMATYTOS DARBO VALANDOS]]","v":{"v":0,"d":"0 EUR"}},{"$f":"INDEX(Parametrai[],MATCH(Informacija[[#This Row],[PROJEKTO TIPAS]],Parametrai[PROJEKTO TIPAS],0),MATCH(Informacija[[#Headers],[GYNYBOS ŠALIS TEISINIAME PROCESE]],Parametrai[#Headers],0))*INDEX('PROJEKTO PARAMETRAI'!$B$12:$H$12,1,MATCH(Informacija[[#Headers],[GYNYBOS ŠALIS TEISINIAME PROCESE]],Parametrai[#Headers],0))*Informacija[[#This Row],[NUMATYTOS DARBO VALANDOS]]","v":{"v":75000,"d":"75,000 EUR"}},{"$f":"INDEX(Parametrai[],MATCH(Informacija[[#This Row],[PROJEKTO TIPAS]],Parametrai[PROJEKTO TIPAS],0),MATCH(Informacija[[#Headers],[INTELEKTINĖS NUOSAVYBĖS TEISININKAS]],Parametrai[#Headers],0))*INDEX('PROJEKTO PARAMETRAI'!$B$12:$H$12,1,MATCH(Informacija[[#Headers],[INTELEKTINĖS NUOSAVYBĖS TEISININKAS]],Parametrai[#Headers],0))*Informacija[[#This Row],[NUMATYTOS DARBO VALANDOS]]","v":{"v":0,"d":"0 EUR"}},{"$f":"INDEX(Parametrai[],MATCH(Informacija[[#This Row],[PROJEKTO TIPAS]],Parametrai[PROJEKTO TIPAS],0),MATCH(Informacija[[#Headers],[BANKROTO TEISININKAS]],Parametrai[#Headers],0))*INDEX('PROJEKTO PARAMETRAI'!$B$12:$H$12,1,MATCH(Informacija[[#Headers],[BANKROTO TEISININKAS]],Parametrai[#Headers],0))*Informacija[[#This Row],[NUMATYTOS DARBO VALANDOS]]","v":{"v":0,"d":"0 EUR"}},{"$f":"INDEX(Parametrai[],MATCH(Informacija[[#This Row],[PROJEKTO TIPAS]],Parametrai[PROJEKTO TIPAS],0),MATCH(Informacija[[#Headers],[ADMINISTRACIJOS DARBUOTOJAI]],Parametrai[#Headers],0))*INDEX('PROJEKTO PARAMETRAI'!$B$12:$H$12,1,MATCH(Informacija[[#Headers],[ADMINISTRACIJOS DARBUOTOJAI]],Parametrai[#Headers],0))*Informacija[[#This Row],[NUMATYTOS DARBO VALANDOS]]","v":{"v":18750,"d":"18,750 EUR"}},{"$f":"INDEX(Parametrai[],MATCH(Informacija[[#This Row],[PROJEKTO TIPAS]],Parametrai[PROJEKTO TIPAS],0),MATCH(Informacija[[#Headers],[BENDRASIS PARTNERIS]],Parametrai[#Headers],0))*INDEX('PROJEKTO PARAMETRAI'!$B$12:$H$12,1,MATCH(Informacija[[#Headers],[BENDRASIS PARTNERIS]],Parametrai[#Headers],0))*Informacija[[#This Row],[FAKTINĖS DARBO VALANDOS]]","v":{"v":35000,"d":"35,000 EUR"}},{"$f":"INDEX(Parametrai[],MATCH(Informacija[[#This Row],[PROJEKTO TIPAS]],Parametrai[PROJEKTO TIPAS],0),MATCH(Informacija[[#Headers],[VERSLO TEISININKAS]],Parametrai[#Headers],0))*INDEX('PROJEKTO PARAMETRAI'!$B$12:$H$12,1,MATCH(Informacija[[#Headers],[VERSLO TEISININKAS]],Parametrai[#Headers],0))*Informacija[[#This Row],[FAKTINĖS DARBO VALANDOS]]","v":{"v":0,"d":"0 EUR"}},{"$f":"INDEX(Parametrai[],MATCH(Informacija[[#This Row],[PROJEKTO TIPAS]],Parametrai[PROJEKTO TIPAS],0),MATCH(Informacija[[#Headers],[GYNYBOS ŠALIS TEISINIAME PROCESE]],Parametrai[#Headers],0))*INDEX('PROJEKTO PARAMETRAI'!$B$12:$H$12,1,MATCH(Informacija[[#Headers],[GYNYBOS ŠALIS TEISINIAME PROCESE]],Parametrai[#Headers],0))*Informacija[[#This Row],[FAKTINĖS DARBO VALANDOS]]","v":{"v":75000,"d":"75,000 EUR"}},{"$f":"INDEX(Parametrai[],MATCH(Informacija[[#This Row],[PROJEKTO TIPAS]],Parametrai[PROJEKTO TIPAS],0),MATCH(Informacija[[#Headers],[INTELEKTINĖS NUOSAVYBĖS TEISININKAS]],Parametrai[#Headers],0))*INDEX('PROJEKTO PARAMETRAI'!$B$12:$H$12,1,MATCH(Informacija[[#Headers],[INTELEKTINĖS NUOSAVYBĖS TEISININKAS]],Parametrai[#Headers],0))*Informacija[[#This Row],[FAKTINĖS DARBO VALANDOS]]","v":{"v":0,"d":"0 EUR"}},{"$f":"INDEX(Parametrai[],MATCH(Informacija[[#This Row],[PROJEKTO TIPAS]],Parametrai[PROJEKTO TIPAS],0),MATCH(Informacija[[#Headers],[BANKROTO TEISININKAS]],Parametrai[#Headers],0))*INDEX('PROJEKTO PARAMETRAI'!$B$12:$H$12,1,MATCH(Informacija[[#Headers],[BANKROTO TEISININKAS]],Parametrai[#Headers],0))*Informacija[[#This Row],[FAKTINĖS DARBO VALANDOS]]","v":{"v":0,"d":"0 EUR"}},{"$f":"INDEX(Parametrai[],MATCH(Informacija[[#This Row],[PROJEKTO TIPAS]],Parametrai[PROJEKTO TIPAS],0),MATCH(Informacija[[#Headers],[ADMINISTRACIJOS DARBUOTOJAI]],Parametrai[#Headers],0))*INDEX('PROJEKTO PARAMETRAI'!$B$12:$H$12,1,MATCH(Informacija[[#Headers],[ADMINISTRACIJOS DARBUOTOJAI]],Parametrai[#Headers],0))*Informacija[[#This Row],[FAKTINĖS DARBO VALANDOS]]","v":{"v":18750,"d":"18,750 EUR"}}]
[null,"4 projektas","Patentų pateikimas",{"$f":"TODAY()+200","v":"2019-09-08"},{"$f":"TODAY()+230","v":"2019-10-08"},{"$f":"TODAY()+230","v":"2019-10-08"},{"$f":"TODAY()+230","v":"2019-10-08"},150,145,{"$f":"DAYS360(Informacija[[#This Row],[NUMATOMA PRADŽIA]],Informacija[[#This Row],[NUMATOMA PABAIGA]],FALSE)","v":30},{"$f":"DAYS360(Informacija[[#This Row],[FAKTINĖ PRADŽIA]],Informacija[[#This Row],[FAKTINĖ PABAIGA]],FALSE)","v":0},{"$f":"INDEX(Parametrai[],MATCH(Informacija[[#This Row],[PROJEKTO TIPAS]],Parametrai[PROJEKTO TIPAS],0),MATCH(Informacija[[#Headers],[BENDRASIS PARTNERIS]],Parametrai[#Headers],0))*INDEX('PROJEKTO PARAMETRAI'!$B$12:$H$12,1,MATCH(Informacija[[#Headers],[BENDRASIS PARTNERIS]],Parametrai[#Headers],0))*Informacija[[#This Row],[NUMATYTOS DARBO VALANDOS]]","v":{"v":5250,"d":"5,250 EUR"}},{"$f":"INDEX(Parametrai[],MATCH(Informacija[[#This Row],[PROJEKTO TIPAS]],Parametrai[PROJEKTO TIPAS],0),MATCH(Informacija[[#Headers],[VERSLO TEISININKAS]],Parametrai[#Headers],0))*INDEX('PROJEKTO PARAMETRAI'!$B$12:$H$12,1,MATCH(Informacija[[#Headers],[VERSLO TEISININKAS]],Parametrai[#Headers],0))*Informacija[[#This Row],[NUMATYTOS DARBO VALANDOS]]","v":{"v":0,"d":"0 EUR"}},{"$f":"INDEX(Parametrai[],MATCH(Informacija[[#This Row],[PROJEKTO TIPAS]],Parametrai[PROJEKTO TIPAS],0),MATCH(Informacija[[#Headers],[GYNYBOS ŠALIS TEISINIAME PROCESE]],Parametrai[#Headers],0))*INDEX('PROJEKTO PARAMETRAI'!$B$12:$H$12,1,MATCH(Informacija[[#Headers],[GYNYBOS ŠALIS TEISINIAME PROCESE]],Parametrai[#Headers],0))*Informacija[[#This Row],[NUMATYTOS DARBO VALANDOS]]","v":{"v":0,"d":"0 EUR"}},{"$f":"INDEX(Parametrai[],MATCH(Informacija[[#This Row],[PROJEKTO TIPAS]],Parametrai[PROJEKTO TIPAS],0),MATCH(Informacija[[#Headers],[INTELEKTINĖS NUOSAVYBĖS TEISININKAS]],Parametrai[#Headers],0))*INDEX('PROJEKTO PARAMETRAI'!$B$12:$H$12,1,MATCH(Informacija[[#Headers],[INTELEKTINĖS NUOSAVYBĖS TEISININKAS]],Parametrai[#Headers],0))*Informacija[[#This Row],[NUMATYTOS DARBO VALANDOS]]","v":{"v":24750,"d":"24,750 EUR"}},{"$f":"INDEX(Parametrai[],MATCH(Informacija[[#This Row],[PROJEKTO TIPAS]],Parametrai[PROJEKTO TIPAS],0),MATCH(Informacija[[#Headers],[BANKROTO TEISININKAS]],Parametrai[#Headers],0))*INDEX('PROJEKTO PARAMETRAI'!$B$12:$H$12,1,MATCH(Informacija[[#Headers],[BANKROTO TEISININKAS]],Parametrai[#Headers],0))*Informacija[[#This Row],[NUMATYTOS DARBO VALANDOS]]","v":{"v":0,"d":"0 EUR"}},{"$f":"INDEX(Parametrai[],MATCH(Informacija[[#This Row],[PROJEKTO TIPAS]],Parametrai[PROJEKTO TIPAS],0),MATCH(Informacija[[#Headers],[ADMINISTRACIJOS DARBUOTOJAI]],Parametrai[#Headers],0))*INDEX('PROJEKTO PARAMETRAI'!$B$12:$H$12,1,MATCH(Informacija[[#Headers],[ADMINISTRACIJOS DARBUOTOJAI]],Parametrai[#Headers],0))*Informacija[[#This Row],[NUMATYTOS DARBO VALANDOS]]","v":{"v":5625,"d":"5,625 EUR"}},{"$f":"INDEX(Parametrai[],MATCH(Informacija[[#This Row],[PROJEKTO TIPAS]],Parametrai[PROJEKTO TIPAS],0),MATCH(Informacija[[#Headers],[BENDRASIS PARTNERIS]],Parametrai[#Headers],0))*INDEX('PROJEKTO PARAMETRAI'!$B$12:$H$12,1,MATCH(Informacija[[#Headers],[BENDRASIS PARTNERIS]],Parametrai[#Headers],0))*Informacija[[#This Row],[FAKTINĖS DARBO VALANDOS]]","v":{"v":5075,"d":"5,075 EUR"}},{"$f":"INDEX(Parametrai[],MATCH(Informacija[[#This Row],[PROJEKTO TIPAS]],Parametrai[PROJEKTO TIPAS],0),MATCH(Informacija[[#Headers],[VERSLO TEISININKAS]],Parametrai[#Headers],0))*INDEX('PROJEKTO PARAMETRAI'!$B$12:$H$12,1,MATCH(Informacija[[#Headers],[VERSLO TEISININKAS]],Parametrai[#Headers],0))*Informacija[[#This Row],[FAKTINĖS DARBO VALANDOS]]","v":{"v":0,"d":"0 EUR"}},{"$f":"INDEX(Parametrai[],MATCH(Informacija[[#This Row],[PROJEKTO TIPAS]],Parametrai[PROJEKTO TIPAS],0),MATCH(Informacija[[#Headers],[GYNYBOS ŠALIS TEISINIAME PROCESE]],Parametrai[#Headers],0))*INDEX('PROJEKTO PARAMETRAI'!$B$12:$H$12,1,MATCH(Informacija[[#Headers],[GYNYBOS ŠALIS TEISINIAME PROCESE]],Parametrai[#Headers],0))*Informacija[[#This Row],[FAKTINĖS DARBO VALANDOS]]","v":{"v":0,"d":"0 EUR"}},{"$f":"INDEX(Parametrai[],MATCH(Informacija[[#This Row],[PROJEKTO TIPAS]],Parametrai[PROJEKTO TIPAS],0),MATCH(Informacija[[#Headers],[INTELEKTINĖS NUOSAVYBĖS TEISININKAS]],Parametrai[#Headers],0))*INDEX('PROJEKTO PARAMETRAI'!$B$12:$H$12,1,MATCH(Informacija[[#Headers],[INTELEKTINĖS NUOSAVYBĖS TEISININKAS]],Parametrai[#Headers],0))*Informacija[[#This Row],[FAKTINĖS DARBO VALANDOS]]","v":{"v":23925,"d":"23,925 EUR"}},{"$f":"INDEX(Parametrai[],MATCH(Informacija[[#This Row],[PROJEKTO TIPAS]],Parametrai[PROJEKTO TIPAS],0),MATCH(Informacija[[#Headers],[BANKROTO TEISININKAS]],Parametrai[#Headers],0))*INDEX('PROJEKTO PARAMETRAI'!$B$12:$H$12,1,MATCH(Informacija[[#Headers],[BANKROTO TEISININKAS]],Parametrai[#Headers],0))*Informacija[[#This Row],[FAKTINĖS DARBO VALANDOS]]","v":{"v":0,"d":"0 EUR"}},{"$f":"INDEX(Parametrai[],MATCH(Informacija[[#This Row],[PROJEKTO TIPAS]],Parametrai[PROJEKTO TIPAS],0),MATCH(Informacija[[#Headers],[ADMINISTRACIJOS DARBUOTOJAI]],Parametrai[#Headers],0))*INDEX('PROJEKTO PARAMETRAI'!$B$12:$H$12,1,MATCH(Informacija[[#Headers],[ADMINISTRACIJOS DARBUOTOJAI]],Parametrai[#Headers],0))*Informacija[[#This Row],[FAKTINĖS DARBO VALANDOS]]","v":{"v":5437.5,"d":"5,438 EUR"}}]
[null,"5 projektas","Darbuotojo byla",{"$f":"TODAY()+220","v":"2019-09-28"},{"$f":"TODAY()+250","v":"2019-10-28"},{"$f":"TODAY()+230","v":"2019-10-08"},{"$f":"TODAY()+259","v":"2019-11-06"},250,255,{"$f":"DAYS360(Informacija[[#This Row],[NUMATOMA PRADŽIA]],Informacija[[#This Row],[NUMATOMA PABAIGA]],FALSE)","v":30},{"$f":"DAYS360(Informacija[[#This Row],[FAKTINĖ PRADŽIA]],Informacija[[#This Row],[FAKTINĖ PABAIGA]],FALSE)","v":28},{"$f":"INDEX(Parametrai[],MATCH(Informacija[[#This Row],[PROJEKTO TIPAS]],Parametrai[PROJEKTO TIPAS],0),MATCH(Informacija[[#Headers],[BENDRASIS PARTNERIS]],Parametrai[#Headers],0))*INDEX('PROJEKTO PARAMETRAI'!$B$12:$H$12,1,MATCH(Informacija[[#Headers],[BENDRASIS PARTNERIS]],Parametrai[#Headers],0))*Informacija[[#This Row],[NUMATYTOS DARBO VALANDOS]]","v":{"v":17500,"d":"17,500 EUR"}},{"$f":"INDEX(Parametrai[],MATCH(Informacija[[#This Row],[PROJEKTO TIPAS]],Parametrai[PROJEKTO TIPAS],0),MATCH(Informacija[[#Headers],[VERSLO TEISININKAS]],Parametrai[#Headers],0))*INDEX('PROJEKTO PARAMETRAI'!$B$12:$H$12,1,MATCH(Informacija[[#Headers],[VERSLO TEISININKAS]],Parametrai[#Headers],0))*Informacija[[#This Row],[NUMATYTOS DARBO VALANDOS]]","v":{"v":6250,"d":"6,250 EUR"}},{"$f":"INDEX(Parametrai[],MATCH(Informacija[[#This Row],[PROJEKTO TIPAS]],Parametrai[PROJEKTO TIPAS],0),MATCH(Informacija[[#Headers],[GYNYBOS ŠALIS TEISINIAME PROCESE]],Parametrai[#Headers],0))*INDEX('PROJEKTO PARAMETRAI'!$B$12:$H$12,1,MATCH(Informacija[[#Headers],[GYNYBOS ŠALIS TEISINIAME PROCESE]],Parametrai[#Headers],0))*Informacija[[#This Row],[NUMATYTOS DARBO VALANDOS]]","v":{"v":30000,"d":"30,000 EUR"}},{"$f":"INDEX(Parametrai[],MATCH(Informacija[[#This Row],[PROJEKTO TIPAS]],Parametrai[PROJEKTO TIPAS],0),MATCH(Informacija[[#Headers],[INTELEKTINĖS NUOSAVYBĖS TEISININKAS]],Parametrai[#Headers],0))*INDEX('PROJEKTO PARAMETRAI'!$B$12:$H$12,1,MATCH(Informacija[[#Headers],[INTELEKTINĖS NUOSAVYBĖS TEISININKAS]],Parametrai[#Headers],0))*Informacija[[#This Row],[NUMATYTOS DARBO VALANDOS]]","v":{"v":0,"d":"0 EUR"}},{"$f":"INDEX(Parametrai[],MATCH(Informacija[[#This Row],[PROJEKTO TIPAS]],Parametrai[PROJEKTO TIPAS],0),MATCH(Informacija[[#Headers],[BANKROTO TEISININKAS]],Parametrai[#Headers],0))*INDEX('PROJEKTO PARAMETRAI'!$B$12:$H$12,1,MATCH(Informacija[[#Headers],[BANKROTO TEISININKAS]],Parametrai[#Headers],0))*Informacija[[#This Row],[NUMATYTOS DARBO VALANDOS]]","v":{"v":0,"d":"0 EUR"}},{"$f":"INDEX(Parametrai[],MATCH(Informacija[[#This Row],[PROJEKTO TIPAS]],Parametrai[PROJEKTO TIPAS],0),MATCH(Informacija[[#Headers],[ADMINISTRACIJOS DARBUOTOJAI]],Parametrai[#Headers],0))*INDEX('PROJEKTO PARAMETRAI'!$B$12:$H$12,1,MATCH(Informacija[[#Headers],[ADMINISTRACIJOS DARBUOTOJAI]],Parametrai[#Headers],0))*Informacija[[#This Row],[NUMATYTOS DARBO VALANDOS]]","v":{"v":9375,"d":"9,375 EUR"}},{"$f":"INDEX(Parametrai[],MATCH(Informacija[[#This Row],[PROJEKTO TIPAS]],Parametrai[PROJEKTO TIPAS],0),MATCH(Informacija[[#Headers],[BENDRASIS PARTNERIS]],Parametrai[#Headers],0))*INDEX('PROJEKTO PARAMETRAI'!$B$12:$H$12,1,MATCH(Informacija[[#Headers],[BENDRASIS PARTNERIS]],Parametrai[#Headers],0))*Informacija[[#This Row],[FAKTINĖS DARBO VALANDOS]]","v":{"v":17850,"d":"17,850 EUR"}},{"$f":"INDEX(Parametrai[],MATCH(Informacija[[#This Row],[PROJEKTO TIPAS]],Parametrai[PROJEKTO TIPAS],0),MATCH(Informacija[[#Headers],[VERSLO TEISININKAS]],Parametrai[#Headers],0))*INDEX('PROJEKTO PARAMETRAI'!$B$12:$H$12,1,MATCH(Informacija[[#Headers],[VERSLO TEISININKAS]],Parametrai[#Headers],0))*Informacija[[#This Row],[FAKTINĖS DARBO VALANDOS]]","v":{"v":6375,"d":"6,375 EUR"}},{"$f":"INDEX(Parametrai[],MATCH(Informacija[[#This Row],[PROJEKTO TIPAS]],Parametrai[PROJEKTO TIPAS],0),MATCH(Informacija[[#Headers],[GYNYBOS ŠALIS TEISINIAME PROCESE]],Parametrai[#Headers],0))*INDEX('PROJEKTO PARAMETRAI'!$B$12:$H$12,1,MATCH(Informacija[[#Headers],[GYNYBOS ŠALIS TEISINIAME PROCESE]],Parametrai[#Headers],0))*Informacija[[#This Row],[FAKTINĖS DARBO VALANDOS]]","v":{"v":30600,"d":"30,600 EUR"}},{"$f":"INDEX(Parametrai[],MATCH(Informacija[[#This Row],[PROJEKTO TIPAS]],Parametrai[PROJEKTO TIPAS],0),MATCH(Informacija[[#Headers],[INTELEKTINĖS NUOSAVYBĖS TEISININKAS]],Parametrai[#Headers],0))*INDEX('PROJEKTO PARAMETRAI'!$B$12:$H$12,1,MATCH(Informacija[[#Headers],[INTELEKTINĖS NUOSAVYBĖS TEISININKAS]],Parametrai[#Headers],0))*Informacija[[#This Row],[FAKTINĖS DARBO VALANDOS]]","v":{"v":0,"d":"0 EUR"}},{"$f":"INDEX(Parametrai[],MATCH(Informacija[[#This Row],[PROJEKTO TIPAS]],Parametrai[PROJEKTO TIPAS],0),MATCH(Informacija[[#Headers],[BANKROTO TEISININKAS]],Parametrai[#Headers],0))*INDEX('PROJEKTO PARAMETRAI'!$B$12:$H$12,1,MATCH(Informacija[[#Headers],[BANKROTO TEISININKAS]],Parametrai[#Headers],0))*Informacija[[#This Row],[FAKTINĖS DARBO VALANDOS]]","v":{"v":0,"d":"0 EUR"}},{"$f":"INDEX(Parametrai[],MATCH(Informacija[[#This Row],[PROJEKTO TIPAS]],Parametrai[PROJEKTO TIPAS],0),MATCH(Informacija[[#Headers],[ADMINISTRACIJOS DARBUOTOJAI]],Parametrai[#Headers],0))*INDEX('PROJEKTO PARAMETRAI'!$B$12:$H$12,1,MATCH(Informacija[[#Headers],[ADMINISTRACIJOS DARBUOTOJAI]],Parametrai[#Headers],0))*Informacija[[#This Row],[FAKTINĖS DARBO VALANDOS]]","v":{"v":9562.5,"d":"9,563 EUR"}}]
[null,"BENDRA SUMA",{"$nulls":5},{"$f":"SUBTOTAL(109,Informacija[NUMATYTOS DARBO VALANDOS])","v":1500},{"$f":"SUBTOTAL(109,Informacija[FAKTINĖS DARBO VALANDOS])","v":1510},{"$f":"SUBTOTAL(109,Informacija[NUMATOMA TRUKMĖ])","v":190},{"$f":"SUBTOTAL(109,Informacija[FAKTINĖ TRUKMĖ])","v":170}]

{"sheet":"PROJEKTO SUMOS","index":3,"n_rows":11,"n_cols":16,"rows_kept":11,"merged":[[3,2,3,7],[3,8,3,13],[3,15,14,19]]}
["Gaukite projekto sumos šiame darbalapyje. Įmonės pavadinimas automatiškai atnaujinamas langelyje dešinėje pusėje. Naudingos instrukcijos pateiktos šio stulpelio langeliuose. Paspauskite rodyklę žemyn, kad pradėtumėte.",{"$f":"'PROJEKTO PARAMETRAI'!B1","v":"Įmonės pavadinimas"}]
["Šio darbalapio pavadinimas yra langelyje dešinėje.",{"$f":"'PROJEKTO PARAMETRAI'!B2","v":"Advokatų kontorų projekto planavimas"}]
["Konfidencialumo pranešimas langelyje dešinėje.",{"$f":"'PROJEKTO PARAMETRAI'!B3","v":"Įmonės pavadinimas (konfidencialu)"}]
["Numatomos išlaidos yra langelyje C4, Faktinės sumos žymė langelyje I4 ir informacijos patarimas P4 langelyje.",null,"NUMATOMOS IŠLAIDOS",{"$nulls":5},"FAKTINĖS",{"$nulls":6},"INFORMACIJA: \nŠi „PivotTable“ nebus automatiškai atnaujinta.  Norėdami atnaujinti, pasirinkite ją (bet kurį langelį iš „PivotTable“), juostelės skirtuke PIVOTTABLE ĮRANKIAI | ANALIZUOTI pasirinkite Atnaujinti.  Arba paspauskite „SHIFT“ + F10, pasirinkdami „PivotTable“, tada pasirinkite Atnaujinti."]
["„PivotTable“ nuo langelio dešinėje atnaujinama automatiškai.","PROJEKTO PAVADINIMAS","BENDRASIS PARTNERIS ","ĮMONĖ ","GYNYBOS ŠALIS TEISINIAME PROCESE ","INTELEKTINĖ NUOSAVYBĖ ","BANKROTAS ","ADMINISTRACIJOS DARBUOTOJAI ","BENDRASIS PARTNERIS  ","ĮMONĖ","GYNYBOS ŠALIS TEISINIAME PROCESE  ","BANKROTAS","INTELEKTINĖ NUOSAVYBĖ","ADMINISTRACIJOS DARBUOTOJAI  "]
[null,"1 projektas",{"v":7000,"d":"7,000.00 EUR"},{"v":20000,"d":"20,000.00 EUR"},{"v":0,"d":"0.00 EUR"},{"v":0,"d":"0.00 EUR"},{"v":0,"d":"0.00 EUR"},{"v":12500,"d":"12,500.00 EUR"},{"v":7700,"d":"7,700.00 EUR"},{"v":22000,"d":"22,000.00 EUR"},{"v":0,"d":"0.00 EUR"},{"v":0,"d":"0.00 EUR"},{"v":0,"d":"0.00 EUR"},{"v":13750,"d":"13,750.00 EUR"}]
[null,"2 projektas",{"v":14000,"d":"14,000.00 EUR"},{"v":40000,"d":"40,000.00 EUR"},{"v":0,"d":"0.00 EUR"},{"v":11000,"d":"11,000.00 EUR"},{"v":0,"d":"0.00 EUR"},{"v":20000,"d":"20,000.00 EUR"},{"v":13650,"d":"13,650.00 EUR"},{"v":39000,"d":"39,000.00 EUR"},{"v":0,"d":"0.00 EUR"},{"v":10725,"d":"10,725.00 EUR"},{"v":0,"d":"0.00 EUR"},{"v":19500,"d":"19,500.00 EUR"}]
[null,"3 projektas",{"v":35000,"d":"35,000.00 EUR"},{"v":0,"d":"0.00 EUR"},{"v":75000,"d":"75,000.00 EUR"},{"v":0,"d":"0.00 EUR"},{"v":0,"d":"0.00 EUR"},{"v":18750,"d":"18,750.00 EUR"},{"v":35000,"d":"35,000.00 EUR"},{"v":0,"d":"0.00 EUR"},{"v":75000,"d":"75,000.00 EUR"},{"v":0,"d":"0.00 EUR"},{"v":0,"d":"0.00 EUR"},{"v":18750,"d":"18,750.00 EUR"}]
[null,"4 projektas",{"v":5250,"d":"5,250.00 EUR"},{"v":0,"d":"0.00 EUR"},{"v":0,"d":"0.00 EUR"},{"v":24750,"d":"24,750.00 EUR"},{"v":0,"d":"0.00 EUR"},{"v":5625,"d":"5,625.00 EUR"},{"v":5075,"d":"5,075.00 EUR"},{"v":0,"d":"0.00 EUR"},{"v":0,"d":"0.00 EUR"},{"v":23925,"d":"23,925.00 EUR"},{"v":0,"d":"0.00 EUR"},{"v":5437.5,"d":"5,437.50 EUR"}]
[null,"5 projektas",{"v":17500,"d":"17,500.00 EUR"},{"v":6250,"d":"6,250.00 EUR"},{"v":30000,"d":"30,000.00 EUR"},{"v":0,"d":"0.00 EUR"},{"v":0,"d":"0.00 EUR"},{"v":9375,"d":"9,375.00 EUR"},{"v":17850,"d":"17,850.00 EUR"},{"v":6375,"d":"6,375.00 EUR"},{"v":30600,"d":"30,600.00 EUR"},{"v":0,"d":"0.00 EUR"},{"v":0,"d":"0.00 EUR"},{"v":9562.5,"d":"9,562.50 EUR"}]
[null,"Bendroji suma",{"v":78750,"d":"78,750.00 EUR"},{"v":66250,"d":"66,250.00 EUR"},{"v":105000,"d":"105,000.00 EUR"},{"v":35750,"d":"35,750.00 EUR"},{"v":0,"d":"0.00 EUR"},{"v":66250,"d":"66,250.00 EUR"},{"v":79275,"d":"79,275.00 EUR"},{"v":67375,"d":"67,375.00 EUR"},{"v":105600,"d":"105,600.00 EUR"},{"v":34650,"d":"34,650.00 EUR"},{"v":0,"d":"0.00 EUR"},{"v":67000,"d":"67,000.00 EUR"}]